[Event "Navidad Barcelona IM1 2024"]
[Site "Barcelona"]
[Date "2024.12.27"]
[Round "3.1"]
[White "Perez Perez, Gabriel"]
[Black "Garcia-Castany Musellas, Gal.la"]
[Result "1-0"]
[ECO "C54"]
[WhiteElo "2201"]
[BlackElo "2205"]
[Annotator "ChessBase"]
[PlyCount "121"]
[EventDate "2024.12.26"]
[EventCountry "ESP"]
[SourceTitle "playchess.com"]
[Source "ChessBase"]
[SourceQuality "1"]
[TimeControl "5400+30"]

1. e4 {[%emt 1:31:00]} e5 {[%emt 1:31:00]} 2. Nf3 {[%emt 0:00:30]} Nc6 {[%emt 0:00:30]} 3. Bc4 {[%emt 0:00:30]} Bc5 {[%emt 0:00:30]} 4. c3 {[%emt 0:00:30]} Nf6 {[%emt 0:00:30]} 5. d4 {[%emt 0:00:30]} exd4 {[%emt 0:00:30]} 6. b4 {[%emt 0:00:30]} Bb6 {[%emt 0:00:30]} 7. e5 {[%emt 0:00:30]} d5 {[%emt 0:00:30]} 8. exf6 {[%emt 0:00:30]} dxc4 {[%emt 0:00:30]} 9. b5 {[%emt 0:00:30]} Na5 {[%emt 0:00:30]} 10. Qe2+ {[%emt 0:00:30]} Be6 {[%emt 0:00:30]} 11. fxg7 {[%emt 0:00:30]} Rg8 {[%emt 0:00:30]} 12. cxd4 {[%emt 0:00:30]} Rxg7 {[%emt 0:00:30]} 13. O-O {[%emt 0:00:30]} Kd7 {[%emt 0:00:30]} 14. g3 {[%emt 0:00:30]} f6 {[%emt 0:00:30]} 15. Nc3 {[%emt 0:00:30]} Qe7 {[%emt 0:00:30]} 16. Bh6 {[%emt 0:00:30]} Rgg8 {[%emt 0:00:30]} 17. Rfe1 {[%emt 0:00:30]} Rae8 {[%emt 0:00:30]} 18. d5 {[%emt 0:00:30]} Bg4 {[%emt 0:00:30]} 19. Qd2 {[%emt 0:00:30]} Qf7 {[%emt 0:00:30]} 20. Nh4 f5 {[%emt 0:00:30]} 21. Be3 Bxe3 {[%emt 0:00:30]} 22. Rxe3 Bh3 {[%emt 0:00:30]} 23. Ne2 Qf6 {[%emt 0:00:30]} 24. Qd4 Qxd4 {[%emt 0:00:30]} 25. Nxd4 f4 {[%emt 0:00:30]} 26. Rxe8 Rxe8 {[%emt 0:00:30]} 27. Ng2 fxg3 {[%emt 0:00:30]} 28. hxg3 Bxg2 {[%emt 0:00:30]} 29. Kxg2 Kd6 {[%emt 0:00:30]} 30. Nf3 {[%emt 0:05:30]} Kxd5 {[%emt 0:00:30]} 31. Rd1+ Kc5 {[%emt 0:00:30]} 32. Rd7 {[%emt 0:01:00]} Kb6 33. Ng5 c6 {[%emt 0:01:00]} 34. bxc6 Kxc6 {[%emt 0:00:30]} 35. Rxh7 c3 {[%emt 0:00:30]} 36. Rh1 Kb5 {[%emt 0:00:30]} 37. Rc1 Rc8 {[%emt 0:00:30]} 38. Ne4 Rd8 39. Nxc3+ Kb4 {[%emt 0:01:00]} 40. g4 Nc4 {[%emt 0:00:30]} 41. g5 Ne5 {[%emt 0:00:30]} 42. Ne4 b5 {[%emt 0:00:30]} 43. Rc7 a5 {[%emt 0:00:30]} 44. f4 Ng6 {[%emt 0:00:30]} 45. Rf7 Rd3 {[%emt 0:00:30]} 46. Rf6 Nh4+ {[%emt 0:00:30]} 47. Kf2 {[%emt 0:07:30]} Rf3+ 48. Ke2 {[%emt 0:00:30]} Ra3 {[%emt 0:01:00]} 49. g6 {[%emt 0:00:30]} Rxa2+ {[%emt 0:00:30]} 50. Kd3 {[%emt 0:00:30]} Rg2 {[%emt 0:00:30]} 51. Ng5 Nxg6 {[%emt 0:00:30]} 52. Rxg6 {[%emt 0:01:00]} a4 53. Ra6 {[%emt 0:00:30]} a3 {[%emt 0:01:00]} 54. Nf3 {[%emt 0:00:30]} Rg3 {[%emt 0:00:30]} 55. Ke4 {[%emt 0:00:30]} Kb3 {[%emt 0:00:30]} 56. Nd4+ {[%emt 0:00:30]} Kb2 57. Rb6 {[%emt 0:00:30]} a2 {[%emt 0:01:00]} 58. Rxb5+ {[%emt 0:00:30]} Kc1 {[%emt 0:00:30]} 59. Ne2+ {[%emt 0:00:30]} Kd1 {[%emt 0:00:30]} 60. Ra5 {[%emt 0:00:30]} Kxe2 {[%emt 0:00:30]} 61. Rxa2+ {[%emt 0:00:30]} 1-0

[Event "Navidad Barcelona IM1 2024"]
[Site "Barcelona"]
[Date "2024.12.27"]
[Round "3.2"]
[White "Zrikem, Nassim"]
[Black "Garcia Ramos, Daniel"]
[Result "0-1"]
[ECO "B13"]
[WhiteElo "2204"]
[BlackElo "2445"]
[Annotator "ChessBase"]
[PlyCount "128"]
[EventDate "2024.12.26"]
[EventCountry "ESP"]
[SourceTitle "playchess.com"]
[Source "ChessBase"]
[SourceQuality "1"]
[TimeControl "5400+30"]

1. Nf3 {[%emt 0:00:32]} Nf6 {[%emt 0:01:15]} 2. d4 {[%emt 0:00:18]} d5 {[%emt 0:00:28]} 3. e3 {[%emt 0:00:16]} c5 {[%emt 0:00:07]} 4. Bd3 {[%emt 0:00:52]} cxd4 {[%emt 0:01:09]} 5. exd4 {[%emt 0:00:21]} Nc6 {[%emt 0:00:05]} 6. h3 {[%emt 0:00:57]} g6 {[%emt 0:00:15]} 7. O-O {[%emt 0:02:35]} Bf5 {[%emt 0:01:49]} 8. c3 {[%emt 0:00:41]} Bxd3 {[%emt 0:04:23]} 9. Qxd3 {[%emt 0:00:06]} e6 {[%emt 0:00:05]} 10. Bf4 {[%emt 0:04:08]} Nh5 {[%emt 0:00:10]} 11. Bh2 {[%emt 0:02:07]} Bd6 {[%emt 0:00:06]} 12. Qe3 {[%emt 0:00:56]} Bxh2+ {[%emt 0:01:43]} 13. Nxh2 {[%emt 0:00:46]} Ng7 {[%emt 0:06:21]} 14. Nd2 {[%emt 0:06:53]} Nf5 {[%emt 0:02:59]} 15. Qe2 {[%emt 0:01:32]} O-O {[%emt 0:13:33]} 16. Nb3 {[%emt 0:01:08]} Qc7 {[%emt 0:03:04]} 17. Nf3 {[%emt 0:01:36]} Rfe8 {[%emt 0:11:37]} 18. Rfe1 {[%emt 0:02:25]} Rad8 {[%emt 0:08:49]} 19. Nc1 {[%emt 0:07:38]} f6 {[%emt 0:07:12]} 20. Nd3 {[%emt 0:06:25]} Nd6 {[%emt 0:00:53]} 21. Nh2 {[%emt 0:10:36]} Ne4 {[%emt 0:07:08]} 22. Ng4 {[%emt 0:04:03]} h5 {[%emt 0:02:11]} 23. Ne3 {[%emt 0:01:55]} Kg7 {[%emt 0:03:10]} 24. Rad1 {[%emt 0:04:51]} b6 {[%emt 0:04:49]} 25. Qf3 {[%emt 0:02:26]} Ng5 {[%emt 0:19:39]} 26. Qe2 {[%emt 0:08:48]} e5 {[%emt 0:00:30]} 27. h4 {[%emt 0:29:09]} Ne6 {[%emt 0:00:00]} 28. dxe5 {[%emt 0:00:00]} fxe5 {[%emt 0:00:00]} 29. f3 {[%emt 0:01:00]} Qe7 {[%emt 0:00:00]} 30. Qf2 {[%emt 0:00:00]} Qf6 {[%emt 0:00:00]} 31. Qg3 {[%emt 0:01:00]} Nf4 {[%emt 0:02:30]} 32. Nf1 {[%emt 0:00:30]} d4 {[%emt 0:00:00]} 33. Nxf4 {[%emt 0:00:30]} exf4 {[%emt 0:00:00]} 34. Qg5 {[%emt 0:00:30]} Qxg5 {[%emt 0:00:00]} 35. hxg5 {[%emt 0:00:00]} Rxe1 {[%emt 0:00:00]} 36. Rxe1 {[%emt 0:00:00]} dxc3 {[%emt 0:00:24]} 37. bxc3 {[%emt 0:00:00]} Rd3 {[%emt 0:00:18]} 38. Re4 {[%emt 0:00:20]} Rxc3 {[%emt 0:00:04]} 39. Rxf4 {[%emt 0:00:05]} Rc5 {[%emt 0:00:29]} 40. Rf6 {[%emt 0:02:35]} Nb4 {[%emt 0:01:42]} 41. Rd6 {[%emt 0:00:00]} Rd5 {[%emt 0:01:27]} 42. Re6 {[%emt 0:00:00]} Rxg5 {[%emt 0:00:33]} 43. Re7+ {[%emt 0:00:00]} Kf6 {[%emt 0:00:07]} 44. Rxa7 {[%emt 0:00:00]} Ra5 {[%emt 0:00:15]} 45. Rb7 {[%emt 0:00:06]} Nd5 {[%emt 0:00:34]} 46. Rd7 {[%emt 0:00:37]} Ke6 {[%emt 0:00:01]} 47. Rg7 {[%emt 0:00:16]} Kf6 {[%emt 0:02:06]} 48. Rd7 {[%emt 0:00:26]} Ke6 {[%emt 0:00:00]} 49. Rg7 {[%emt 0:00:04]} Rxa2 {[%emt 0:00:19]} 50. Rxg6+ {[%emt 0:00:01]} Kf5 {[%emt 0:00:07]} 51. Rd6 {[%emt 0:00:49]} Ke5 {[%emt 0:00:24]} 52. Rh6 {[%emt 0:01:42]} b5 {[%emt 0:00:01]} 53. Rxh5+ {[%emt 0:00:08]} Kd4 {[%emt 0:00:06]} 54. Rh4+ {[%emt 0:01:13]} Kc5 {[%emt 0:00:36]} 55. g4 {[%emt 0:01:15]} b4 {[%emt 0:00:22]} 56. g5 {[%emt 0:00:11]} b3 {[%emt 0:01:17]} 57. g6 {[%emt 0:01:42]} b2 {[%emt 0:01:10]} 58. g7 {[%emt 0:00:30]} Nf6 {[%emt 0:00:34]} 59. Nd2 {[%emt 0:00:00]} Ra1+ {[%emt 0:00:15]} 60. Kf2 {[%emt 0:00:00]} Rd1 {[%emt 0:00:11]} 61. Ne4+ {[%emt 0:00:58]} Nxe4+ {[%emt 0:00:05]} 62. Rxe4 {[%emt 0:00:31]} b1=Q {[%emt 0:00:06]} 63. g8=Q {[%emt 0:00:28]} Rf1+ {[%emt 0:00:30]} 64. Ke3 {[%emt 0:00:31]} Qc1+ {[%emt 0:00:06]} 0-1

[Event "Navidad Barcelona IM1 2024"]
[Site "Barcelona"]
[Date "2024.12.27"]
[Round "3.3"]
[White "Villar Reymundo, Juan Antonio"]
[Black "Martin Gonzalez, Angel"]
[Result "1-0"]
[ECO "D34"]
[WhiteElo "2147"]
[BlackElo "2197"]
[Annotator "RC"]
[PlyCount "53"]
[EventDate "2024.12.26"]
[EventCountry "ESP"]
[SourceTitle "playchess.com"]
[Source "ChessBase"]
[SourceQuality "1"]
[TimeControl "5400+30"]

1. d4 {[%emt 1:31:00]} d5 {[%emt 1:31:00]} 2. Nf3 {[%emt 0:00:30]} c5 {[%emt 0:00:30]} 3. c4 {[%emt 0:00:30]} e6 {[%emt 0:00:30]} 4. cxd5 {[%emt 0:00:30]} exd5 {[%emt 0:00:30]} 5. g3 {[%emt 0:00:30]} Nc6 {[%emt 0:00:30]} 6. Bg2 {[%emt 0:00:30]} Nf6 {[%emt 0:00:30]} 7. O-O {[%emt 0:00:30]} Be7 {[%emt 0:00:30]} 8. Nc3 {[%emt 0:00:30]} O-O {[%emt 0:00:30]} 9. dxc5 {[%emt 0:00:30]} d4 {[%emt 0:00:30]} 10. Na4 {[%emt 0:00:30]} Qd5 {[%emt 0:00:30]} 11. Ng5 {[%emt 0:00:30]} Qd7 {[%emt 0:00:30]} 12. e4 {[%emt 0:00:30]} h6 {[%emt 0:00:30]} 13. Nh3 {[%emt 0:00:30]} Nxe4 {[%emt 0:00:30]} 14. Bxe4 {[%emt 0:00:30]} Qxh3 {[%emt 0:00:30]} 15. Bf4 {[%emt 0:00:30]} Bf6 {[%emt 0:00:30]} 16. Qb3 {[%emt 0:00:30]} Ne5 {[%emt 0:00:30]} 17. Bxe5 {[%emt 0:00:30]} Bxe5 {[%emt 0:00:30]} 18. Bxb7 {[%emt 0:00:30]} Rb8 {[%emt 0:00:30]} 19. Bg2 {[%emt 0:00:30]} Qh5 {[%emt 0:00:30]} 20. Qd3 {[%emt 0:00:30]} Bh3 {[%emt 0:00:30]} 21. Bxh3 {[%emt 0:00:30]} Qxh3 {[%emt 0:00:30]} 22. Rfe1 {[%emt 0:00:30]} Rfe8 {[%emt 0:00:30]} 23. b3 {[%emt 0:00:30]} h5 {[%emt 0:00:30]} 24. Re4 {[%emt 0:00:30]} Qf5 {[%emt 0:00:30]} 25. Rae1 {[%emt 0:00:30]} Re6 {[%emt 0:00:30]} 26. Nb2 {[%emt 0:00:30]} Rbe8 {[%emt 0:00:30]} 27. Rxe5 {[%emt 0:00:30]} 1-0

[Event "Navidad Barcelona IM1 2024"]
[Site "Barcelona"]
[Date "2024.12.27"]
[Round "3.4"]
[White "Sviridenko, Yaroslav"]
[Black "Munoz, Miguel"]
[Result "0-1"]
[ECO "A61"]
[WhiteElo "2120"]
[BlackElo "2325"]
[Annotator "RC"]
[PlyCount "58"]
[EventDate "2024.12.26"]
[EventCountry "ESP"]
[SourceTitle "playchess.com"]
[Source "ChessBase"]
[SourceQuality "1"]
[TimeControl "5400+30"]

1. d4 {[%emt 0:00:10]} Nf6 {[%emt 0:27:02]} 2. c4 {[%emt 0:00:05]} e6 {[%emt 0:00:27]} 3. Nf3 {[%emt 0:00:09]} c5 {[%emt 0:01:03]} 4. d5 {[%emt 0:00:13]} exd5 {[%emt 0:01:22]} 5. cxd5 {[%emt 0:00:08]} d6 {[%emt 0:00:47]} 6. Nc3 {[%emt 0:00:13]} g6 {[%emt 0:00:28]} 7. h3 {[%emt 0:00:12]} Bg7 {[%emt 0:00:06]} 8. Bf4 {[%emt 0:00:06]} O-O {[%emt 0:00:17]} 9. e3 {[%emt 0:00:04]} a6 {[%emt 0:02:48]} 10. a4 {[%emt 0:00:08]} Ne8 {[%emt 0:02:09]} 11. e4 {[%emt 0:00:25]} Nd7 {[%emt 0:00:32]} 12. Qd2 {[%emt 0:00:16]} Rb8 {[%emt 0:00:16]} 13. Bd3 {[%emt 0:13:40]} Qe7 {[%emt 0:01:02]} 14. O-O {[%emt 0:01:11]} f6 {[%emt 0:01:53]} 15. Bh2 {[%emt 0:08:28]} Ne5 {[%emt 0:02:25]} 16. Ne1 {[%emt 0:08:45]} f5 {[%emt 0:08:38]} 17. exf5 {[%emt 0:04:32]} gxf5 {[%emt 0:00:32]} 18. Bf4 {[%emt 0:06:00]} Nc7 {[%emt 0:01:16]} 19. Bg5 {[%emt 0:11:11]} Bf6 {[%emt 0:00:59]} 20. Bxf6 {[%emt 0:00:32]} Qxf6 {[%emt 0:00:18]} 21. f4 {[%emt 0:00:34]} Nxd3 {[%emt 0:02:02]} 22. Qxd3 {[%emt 0:00:18]} b5 {[%emt 0:04:26]} 23. axb5 {[%emt 0:01:02]} axb5 {[%emt 0:00:06]} 24. Nf3 {[%emt 0:07:57]} h6 {[%emt 0:10:07]} 25. Rfe1 {[%emt 0:08:14]} Qf7 {[%emt 0:01:45]} 26. Ra7 {[%emt 0:07:39]} Rb7 {[%emt 0:00:24]} 27. Rxb7 {[%emt 0:07:36]} Bxb7 {[%emt 0:00:29]} 28. Nh4 {[%emt 0:00:38]} b4 {[%emt 0:02:20]} 29. Qg3+ {[%emt 0:01:13]} Kh7 {[%emt 0:00:54]} 0-1

[Event "Navidad Barcelona IM1 2024"]
[Site "Barcelona"]
[Date "2024.12.27"]
[Round "3.5"]
[White "Alcala Gonzalez, Cesar"]
[Black "Uber Gracia, Hugo"]
[Result "1/2-1/2"]
[ECO "D11"]
[WhiteElo "2257"]
[BlackElo "2315"]
[Annotator "RC"]
[PlyCount "112"]
[EventDate "2024.12.26"]
[EventCountry "ESP"]
[SourceTitle "playchess.com"]
[Source "ChessBase"]
[SourceQuality "1"]
[TimeControl "5400+30"]

1. d4 {[%emt 0:02:22]} d5 {[%emt 0:00:12]} 2. c4 {[%emt 0:00:01]} c6 {[%emt 0:00:07]} 3. Nf3 {[%emt 0:00:01]} Nf6 {[%emt 0:00:08]} 4. g3 {[%emt 0:00:04]} Bf5 {[%emt 0:02:02]} 5. Nc3 {[%emt 0:00:04]} e6 {[%emt 0:02:35]} 6. Nh4 {[%emt 0:00:03]} Bg6 {[%emt 0:04:40]} 7. Nxg6 {[%emt 0:01:30]} hxg6 {[%emt 0:00:04]} 8. Qd3 {[%emt 0:00:17]} Nbd7 {[%emt 0:02:07]} 9. Bg2 {[%emt 0:00:11]} Be7 {[%emt 0:01:22]} 10. O-O {[%emt 0:01:44]} O-O {[%emt 0:00:39]} 11. Rd1 {[%emt 0:01:18]} Qc7 {[%emt 0:06:33]} 12. Bf4 {[%emt 0:09:44]} Bd6 {[%emt 0:01:55]} 13. Bg5 {[%emt 0:03:07]} Rfe8 {[%emt 0:06:05]} 14. Rac1 {[%emt 0:03:44]} Qa5 {[%emt 0:03:03]} 15. c5 {[%emt 0:13:51]} Bf8 {[%emt 0:03:00]} 16. Rb1 {[%emt 0:00:24]} e5 {[%emt 0:02:01]} 17. b4 {[%emt 0:00:05]} Qc7 {[%emt 0:00:17]} 18. e4 {[%emt 0:04:18]} dxe4 {[%emt 0:13:42]} 19. Nxe4 {[%emt 0:00:28]} Be7 {[%emt 0:07:40]} 20. Bxf6 {[%emt 0:14:32]} Nxf6 {[%emt 0:04:59]} 21. dxe5 {[%emt 0:00:11]} Qxe5 {[%emt 0:01:06]} 22. Nd6 {[%emt 0:00:11]} Bxd6 {[%emt 0:01:46]} 23. Qxd6 {[%emt 0:04:43]} Qf5 {[%emt 0:02:45]} 24. b5 {[%emt 0:24:08]} Re6 {[%emt 0:03:16]} 25. Qf4 {[%emt 0:02:46]} Qxc5 {[%emt 0:05:02]} 26. bxc6 {[%emt 0:00:05]} bxc6 {[%emt 0:00:15]} 27. Rdc1 {[%emt 0:00:05]} Qa3 {[%emt 0:03:11]} 28. Bxc6 {[%emt 0:02:40]} Rd8 {[%emt 0:02:52]} 29. Qa4 {[%emt 0:01:45]} Qe7 {[%emt 0:02:58]} 30. Rd1 {[%emt 0:00:40]} Rc8 {[%emt 0:19:08]} 31. Bf3 {[%emt 0:03:22]} a6 {[%emt 0:00:30]} 32. Rb7 {[%emt 0:04:24]} Qc5 {[%emt 0:00:00]} 33. Qb4 {[%emt 0:00:39]} Qf5 {[%emt 0:00:00]} 34. Rb8 {[%emt 0:00:17]} Ree8 {[%emt 0:00:21]} 35. Rxc8 {[%emt 0:00:14]} Rxc8 {[%emt 0:00:02]} 36. Kg2 {[%emt 0:00:27]} Qb5 {[%emt 0:01:29]} 37. Qxb5 {[%emt 0:03:27]} axb5 {[%emt 0:00:01]} 38. Be2 {[%emt 0:00:07]} b4 {[%emt 0:01:37]} 39. Rd4 {[%emt 0:00:14]} Rb8 {[%emt 0:00:00]} 40. Bc4 {[%emt 0:00:13]} Kf8 {[%emt 0:00:00]} 41. h4 {[%emt 0:02:34]} Ke7 {[%emt 0:00:38]} 42. Bb3 {[%emt 0:00:00]} Rb7 {[%emt 0:01:22]} 43. Kf3 {[%emt 0:00:00]} Nd7 {[%emt 0:00:00]} 44. Ke4 {[%emt 0:00:06]} Rb5 {[%emt 0:00:27]} 45. Rxd7+ {[%emt 0:01:16]} Kxd7 {[%emt 0:00:01]} 46. Ba4 {[%emt 0:01:08]} Kc6 {[%emt 0:00:07]} 47. Kd4 {[%emt 0:00:00]} Kb6 {[%emt 0:00:24]} 48. Bxb5 {[%emt 0:00:00]} Kxb5 {[%emt 0:00:01]} 49. g4 {[%emt 0:00:22]} f5 {[%emt 0:01:26]} 50. gxf5 {[%emt 0:00:39]} gxf5 {[%emt 0:00:01]} 51. h5 {[%emt 0:01:29]} f4 {[%emt 0:02:03]} 52. f3 Ka4 {[%emt 0:00:00]} 53. Kc5 {[%emt 0:00:29]} Ka3 {[%emt 0:00:00]} 54. Kc4 {[%emt 0:00:16]} Ka4 {[%emt 0:00:00]} 55. Kc5 {[%emt 0:00:41]} Ka3 {[%emt 0:00:00]} 56. Kc4 {[%emt 0:00:00]} Ka4 {[%emt 0:00:00]} 1/2-1/2

[Event "Navidad Barcelona IM1 2024"]
[Site "Barcelona"]
[Date "2024.12.28"]
[Round "4.1"]
[White "Garcia-Castany Musellas, Gal.la"]
[Black "Uber Gracia, Hugo"]
[Result "1/2-1/2"]
[ECO "B12"]
[WhiteElo "2205"]
[BlackElo "2315"]
[Annotator "RC"]
[PlyCount "127"]
[EventDate "2024.12.26"]
[EventCountry "ESP"]
[SourceTitle "playchess.com"]
[Source "ChessBase"]
[SourceQuality "1"]
[TimeControl "5400+30"]

1. e4 {[%emt 1:31:00]} c6 {[%emt 1:31:00]} 2. d4 {[%emt 0:00:30]} d5 {[%emt 0:00:30]} 3. e5 {[%emt 0:00:30]} c5 {[%emt 0:00:30]} 4. dxc5 {[%emt 0:00:30]} e6 {[%emt 0:00:30]} 5. c3 {[%emt 0:00:30]} Nd7 {[%emt 0:00:30]} 6. Nf3 {[%emt 0:00:30]} Bxc5 {[%emt 0:00:30]} 7. Nbd2 {[%emt 0:00:30]} Ne7 {[%emt 0:00:30]} 8. Nb3 {[%emt 0:00:30]} Bb6 {[%emt 0:00:30]} 9. Bd3 {[%emt 0:00:30]} Ng6 {[%emt 0:00:30]} 10. Qe2 {[%emt 0:00:30]} Qc7 {[%emt 0:00:30]} 11. Bxg6 {[%emt 0:00:30]} hxg6 {[%emt 0:00:30]} 12. O-O {[%emt 0:00:30]} Nc5 {[%emt 0:00:30]} 13. Nbd4 {[%emt 0:00:30]} Ne4 {[%emt 0:00:30]} 14. Nb5 {[%emt 0:00:30]} Qd8 {[%emt 0:00:30]} 15. c4 {[%emt 0:00:30]} O-O {[%emt 0:00:30]} 16. Be3 {[%emt 0:00:30]} Bd7 {[%emt 0:00:30]} 17. Bxb6 {[%emt 0:00:30]} Qxb6 18. Nbd4 {[%emt 0:00:30]} Rac8 {[%emt 0:01:00]} 19. Rac1 {[%emt 0:00:30]} Bc6 {[%emt 0:00:30]} 20. b3 {[%emt 0:00:30]} Rfd8 {[%emt 0:00:30]} 21. Rc2 {[%emt 0:00:30]} Rc7 {[%emt 0:00:30]} 22. Rfc1 {[%emt 0:00:30]} Rcd7 {[%emt 0:00:30]} 23. c5 {[%emt 0:00:30]} Qb4 {[%emt 0:00:30]} 24. Qe3 {[%emt 0:00:30]} Re8 {[%emt 0:00:30]} 25. Ne1 {[%emt 0:00:30]} f6 {[%emt 0:00:30]} 26. Nd3 {[%emt 0:00:30]} Qa5 {[%emt 0:00:30]} 27. b4 {[%emt 0:00:30]} Qa6 {[%emt 0:00:30]} 28. h4 {[%emt 0:00:30]} Bb5 {[%emt 0:00:30]} 29. Nxb5 {[%emt 0:00:30]} Qxb5 {[%emt 0:00:30]} 30. Kh2 {[%emt 0:00:30]} fxe5 {[%emt 0:00:30]} 31. Nxe5 {[%emt 0:00:30]} Rc7 {[%emt 0:00:30]} 32. f3 {[%emt 0:00:30]} Nf6 {[%emt 0:00:30]} 33. Qf4 {[%emt 0:00:30]} Nh5 {[%emt 0:00:30]} 34. Qg4 {[%emt 0:00:30]} Nf6 {[%emt 0:00:30]} 35. Qd4 {[%emt 0:00:30]} Kh7 {[%emt 0:00:30]} 36. a3 {[%emt 0:00:30]} Rce7 {[%emt 0:00:30]} 37. c6 {[%emt 0:00:30]} bxc6 {[%emt 0:00:30]} 38. Rxc6 {[%emt 0:00:30]} Nd7 {[%emt 0:00:30]} 39. Rc7 {[%emt 0:00:30]} Nxe5 {[%emt 0:00:30]} 40. Qxe5 Qd3 {[%emt 0:00:30]} 41. Qg5 {[%emt 0:01:00]} Qf5 {[%emt 0:00:30]} 42. Rxe7 {[%emt 0:00:30]} Rxe7 {[%emt 0:00:30]} 43. Rc6 {[%emt 0:00:30]} Qf6 {[%emt 0:00:30]} 44. a4 {[%emt 0:00:30]} Kg8 {[%emt 0:00:30]} 45. b5 {[%emt 0:00:30]} Kf7 {[%emt 0:00:30]} 46. Qg3 {[%emt 0:00:30]} Rb7 {[%emt 0:00:30]} 47. Rc8 {[%emt 0:00:30]} d4 {[%emt 0:00:30]} 48. Qd6 {[%emt 0:00:30]} Qxh4+ {[%emt 0:00:30]} 49. Kg1 Re7 {[%emt 0:00:30]} 50. g3 {[%emt 0:01:00]} Qg5 {[%emt 0:00:30]} 51. g4 {[%emt 0:00:30]} Qe3+ {[%emt 0:00:30]} 52. Kg2 {[%emt 0:00:30]} d3 {[%emt 0:00:30]} 53. Rd8 {[%emt 0:00:30]} Qe2+ {[%emt 0:00:30]} 54. Kg3 {[%emt 0:00:30]} Qe1+ {[%emt 0:00:30]} 55. Kg2 {[%emt 0:00:30]} Qd2+ {[%emt 0:00:30]} 56. Kh3 {[%emt 0:00:30]} Qc1 {[%emt 0:00:30]} 57. Qxd3 {[%emt 0:00:30]} Qh1+ {[%emt 0:00:30]} 58. Kg3 {[%emt 0:00:30]} g5 {[%emt 0:00:30]} 59. Qe3 {[%emt 0:00:30]} Qa1 {[%emt 0:00:30]} 60. Qxg5 {[%emt 0:00:30]} Qg1+ {[%emt 0:00:30]} 61. Kh3 {[%emt 0:00:30]} Qh1+ {[%emt 0:00:30]} 62. Kg3 {[%emt 0:00:30]} Qg1+ {[%emt 0:00:30]} 63. Kh3 {[%emt 0:00:30]} Qh1+ {[%emt 0:00:30]} 64. Kg3 {[%emt 0:00:30]} 1/2-1/2

[Event "Navidad Barcelona IM1 2024"]
[Site "Barcelona"]
[Date "2024.12.28"]
[Round "4.2"]
[White "Munoz, Miguel"]
[Black "Alcala Gonzalez, Cesar"]
[Result "1/2-1/2"]
[ECO "B11"]
[WhiteElo "2325"]
[BlackElo "2257"]
[Annotator "RC"]
[PlyCount "110"]
[EventDate "2024.12.26"]
[EventCountry "ESP"]
[SourceTitle "playchess.com"]
[Source "ChessBase"]
[SourceQuality "1"]
[TimeControl "5400+30"]

1. e4 {[%emt 0:13:58]} c6 {[%emt 0:00:04]} 2. Nc3 {[%emt 0:00:32]} d5 {[%emt 0:00:04]} 3. Nf3 {[%emt 0:00:08]} dxe4 {[%emt 0:00:05]} 4. Nxe4 {[%emt 0:00:09]} Nf6 {[%emt 0:00:03]} 5. Qe2 {[%emt 0:00:14]} Na6 {[%emt 0:00:10]} 6. d4 {[%emt 0:03:43]} Nxe4 {[%emt 0:00:06]} 7. Qxe4 {[%emt 0:00:06]} Qd5 {[%emt 1:33:28]} 8. Qxd5 {[%emt 0:07:04]} cxd5 {[%emt 0:00:00]} 9. Bb5+ {[%emt 0:00:14]} Bd7 {[%emt 0:00:00]} 10. Bxd7+ {[%emt 0:00:09]} Kxd7 {[%emt 0:00:00]} 11. Ne5+ {[%emt 0:00:25]} Ke8 {[%emt 0:00:00]} 12. Nd3 {[%emt 1:09:48]} e6 {[%emt 0:00:00]} 13. Bf4 {[%emt 0:00:30]} Nb4 {[%emt 0:00:00]} 14. Kd2 {[%emt 0:00:00]} Nc6 {[%emt 0:00:00]} 15. c3 {[%emt 0:00:00]} h5 {[%emt 0:00:00]} 16. h4 {[%emt 0:00:00]} Be7 {[%emt 0:00:00]} 17. Rae1 {[%emt 0:00:00]} b5 {[%emt 0:00:00]} 18. Ne5 {[%emt 0:00:00]} Rc8 {[%emt 0:00:00]} 19. Nxc6 {[%emt 0:00:00]} Rxc6 {[%emt 0:00:00]} 20. a3 {[%emt 0:00:00]} g6 {[%emt 0:00:00]} 21. Kd3 {[%emt 0:00:00]} Kd7 {[%emt 0:00:00]} 22. Bd2 {[%emt 0:00:00]} a5 {[%emt 0:00:00]} 23. f3 {[%emt 0:00:00]} Ra8 {[%emt 0:00:00]} 24. g4 {[%emt 0:00:00]} b4 {[%emt 0:00:00]} 25. axb4 {[%emt 0:00:00]} axb4 {[%emt 0:00:00]} 26. g5 {[%emt 0:00:00]} Ra2 {[%emt 0:00:00]} 27. Rb1 {[%emt 0:00:00]} Rb6 {[%emt 0:00:00]} 28. c4 {[%emt 0:00:00]} dxc4+ {[%emt 0:00:00]} 29. Kxc4 {[%emt 0:00:00]} b3 {[%emt 0:00:00]} 30. Bc3 {[%emt 0:00:00]} Ra4+ {[%emt 0:00:00]} 31. Kd3 {[%emt 0:00:00]} Bd6 {[%emt 0:00:00]} 32. Ra1 {[%emt 0:00:00]} Rba6 {[%emt 0:00:00]} 33. Rxa4 {[%emt 0:00:00]} Rxa4 {[%emt 0:00:00]} 34. f4 {[%emt 0:00:00]} Bxf4 {[%emt 0:00:00]} 35. Rf1 {[%emt 0:11:00]} e5 36. dxe5 {[%emt 0:00:00]} Ke6 {[%emt 0:00:00]} 37. Bd4 {[%emt 0:00:00]} Bxe5 {[%emt 0:00:46]} 38. Bxe5 {[%emt 0:00:00]} Kxe5 {[%emt 0:00:02]} 39. Rxf7 {[%emt 0:00:00]} Rxh4 {[%emt 0:07:57]} 40. Rf6 {[%emt 0:00:00]} Rg4 {[%emt 0:00:28]} 41. Rxg6 {[%emt 0:00:00]} Kf5 {[%emt 0:01:27]} 42. Rg8 {[%emt 0:00:00]} Rxg5 {[%emt 0:00:25]} 43. Rf8+ {[%emt 0:00:00]} Kg4 {[%emt 0:01:39]} 44. Kc4 {[%emt 0:00:00]} h4 {[%emt 0:00:44]} 45. Kxb3 {[%emt 0:00:00]} h3 {[%emt 0:00:06]} 46. Rh8 {[%emt 0:00:00]} Kg3 {[%emt 0:00:13]} 47. Kc4 {[%emt 0:00:00]} h2 {[%emt 0:00:41]} 48. Rxh2 {[%emt 0:00:00]} Kxh2 {[%emt 0:00:06]} 49. b4 {[%emt 0:00:00]} Kg3 {[%emt 0:02:06]} 50. b5 {[%emt 0:00:00]} Kf4 {[%emt 0:01:00]} 51. b6 {[%emt 0:00:00]} Rg1 {[%emt 0:01:32]} 52. Kd5 {[%emt 0:00:00]} Rb1 {[%emt 0:00:34]} 53. Kc6 {[%emt 0:00:00]} Ke5 {[%emt 0:00:08]} 54. b7 {[%emt 0:00:00]} Ke6 {[%emt 0:00:12]} 55. Kc7 {[%emt 0:00:00]} Rc1+ {[%emt 0:00:36]} 1/2-1/2